bitfinex/quotes_ETHUSD_20220227
["timestamp","ask_amount","ask_price","bid_price","bid_amount"]
[1645940377001,0.00569351,2719.9,2719.1,4.4112]
[1645940377206,1.07994121,2720.0,2719.1,4.239]
[1645940377207,1.37994121,2720.0,2719.1,4.239]
[1645940377404,1.37994121,2720.0,2719.1,1.0]
[1645940377602,0.00569351,2719.9,2719.1,1.0]
[1645940377901,0.00569351,2719.9,2719.0,4.0432]
[1645940378149,0.00569351,2719.9,2718.9,4.50389146]
[1645940378549,1.74964121,2720.0,2718.9,4.5]
[1645940378750,0.00569335,2719.9,2718.9,15.76389146]
[1645940379752,1.37994121,2720.0,2719.0,1.55400912]
[1645940379954,0.0056935,2719.9,2719.1,14.76]
[1645940380153,0.0056935,2719.9,2719.2,1.55400912]
[1645940380952,1.07994121,2720.0,2719.2,1.55400912]
[1645940381152,0.3697,2720.3,2719.2,1.55400912]
[1645940381153,0.00569375,2719.9,2719.2,1.55400912]
[1645940382001,2.78097037,2720.6,2719.2,12.81400912]
[1645940382199,1.23451247,2720.4,2719.6,1.34630491]
[1645940382401,0.00569375,2719.9,2719.3,14.76]
[1645940382600,0.00569375,2719.9,2719.4,2.55385325]
[1645940382900,0.00569375,2719.9,2719.4,1.0]
[1645940383200,1.23451247,2720.4,2719.4,1.0]
[1645940383401,1.23451247,2720.4,2719.1,18.5967]
[1645940383700,0.00569388,2719.9,2719.4,1.3315967]
[1645940384101,0.00569388,2719.9,2719.5,3.5]
[1645940384301,0.00569388,2719.9,2719.5,4.5]
[1645940384504,2.63511524,2720.6,2719.5,15.76]
[1645940384701,0.02277212,2720.3,2719.9,0.01474386]
[1645940385752,1.12756689,2720.4,2719.9,0.01474386]
[1645940385953,0.00569388,2720.2,2719.9,0.01474386]
[1645940386953,1.12756689,2720.4,2719.9,0.01474386]
[1645940387163,0.0056939,2720.2,2719.9,0.01474386]
[1645940387356,0.0056939,2720.2,2720.0,1.55354796]
[1645940388155,0.00114487,2720.9,2720.0,1.55354796]
[1645940388358,0.00569388,2720.2,2720.1,1.43458855]
[1645940388556,0.00569388,2720.2,2720.1,1.55354796]
[1645940388756,0.00569388,2720.2,2719.9,0.01474386]
[1645940388959,0.00569388,2720.2,2720.0,1.55353307]
[1645940389157,0.00569388,2720.2,2720.1,3.5]
[1645940389399,0.00114487,2721.1,2720.1,5.05353307]
[1645940389599,0.02277211,2720.6,2720.2,1.55200093]
[1645940389803,0.02277211,2720.6,2720.3,3.5]
[1645940390200,0.02277211,2720.6,2720.1,11.26]
[1645940390400,0.02277211,2720.6,2720.2,3.5]
[1645940390605,0.00114487,2721.1,2720.4,1.22776601]
[1645940390805,1.85603165,2721.2,2720.2,3.5]
[1645940391005,0.00569377,2720.5,2720.2,3.5]
[1645940391804,0.00114487,2721.1,2720.2,3.5]
[1645940392009,0.00569377,2720.5,2720.3,1.13188551]
[1645940392211,0.00569377,2720.5,2720.2,3.5]
[1645940393063,2.00407652,2721.2,2720.2,3.5]
[1645940393250,0.00569377,2720.5,2720.2,4.68205079]
[1645940393549,0.00569377,2720.5,2720.2,5.68205079]
[1645940393954,0.00569377,2720.5,2720.2,4.5]
[1645940394154,1.85717652,2721.2,2720.2,4.5]
[1645940394356,0.00569377,2720.5,2720.2,4.5]
[1645940394553,0.01028691,2720.3,2720.2,1.0]
[1645940394755,0.01028691,2720.3,2720.1,12.26]
[1645940394963,0.01028691,2720.3,2720.2,3.5]
[1645940395359,0.01028691,2720.3,2720.2,4.5]
[1645940395559,0.01028691,2720.3,2720.2,3.5]
[1645940395761,0.01028691,2720.3,2720.2,4.5]
[1645940395958,0.01028691,2720.3,2720.2,3.5]
[1645940396159,0.01028691,2720.3,2720.2,4.5]
[1645940396560,0.01028691,2720.3,2720.2,1.0]
[1645940396808,0.01028691,2720.3,2720.0,11.26]
[1645940397008,0.01028691,2720.3,2720.1,14.76]
[1645940397209,0.01028691,2720.3,2720.2,3.5]
[1645940397410,0.01028691,2720.3,2720.2,11.26]
[1645940397614,0.01028691,2720.3,2720.2,3.5]
[1645940397810,0.01028691,2720.3,2720.2,1.0]
[1645940398010,0.01028691,2720.3,2719.9,1.16183386]
[1645940398210,0.01028691,2720.3,2720.0,3.5]
[1645940398610,0.01028691,2720.3,2720.0,4.5]
[1645940399012,0.01028691,2720.3,2720.0,1.0]
[1645940399215,0.01028691,2720.3,2719.9,0.01474386]
[1645940399216,0.01598077,2720.3,2719.9,0.01474386]
[1645940400218,0.01028691,2720.3,2719.9,0.01474386]
[1645940400414,0.00569388,2720.2,2719.9,0.01474386]
[1645940400656,0.00569388,2720.2,2720.0,5.6347]
[1645940400858,0.00569388,2720.2,2720.0,6.6347]
[1645940401259,0.00569388,2720.2,2720.0,5.6347]
[1645940401461,0.01028691,2720.3,2720.0,5.6347]
[1645940401661,0.37539388,2720.2,2720.0,5.6347]
[1645940401857,0.67539388,2720.2,2720.0,5.6347]
[1645940402157,0.82229388,2720.2,2720.0,5.6347]
[1645940402357,1.35329388,2720.2,2720.0,5.6347]
[1645940402560,1.56919381,2720.1,2720.0,5.6347]
[1645940402958,2.24709381,2720.1,2720.0,5.6347]
[1645940403358,2.10019381,2720.1,2720.0,5.6347]
[1645940405497,0.9007,2720.1,2720.0,5.6347]
[1645940405702,0.15260288,2720.2,2720.0,5.6347]
[1645940405904,0.00570288,2720.2,2720.0,5.6347]
[1645940406106,0.3697,2720.6,2720.2,0.00746419]
[1645940406304,0.00114487,2720.5,2720.2,0.00746419]
[1645940406501,0.147,2720.9,2720.3,1.27767701]
[1645940406502,0.02280803,2720.6,2720.3,1.27767701]
[1645940407306,0.00114487,2720.8,2720.3,1.27767701]
[1645940407507,0.41397037,2721.0,2720.3,1.27767701]
[1645940407706,0.41397037,2721.0,2720.2,0.00746419]
[1645940408152,0.34427037,2721.0,2720.2,0.00746419]
[1645940408351,0.04427037,2721.0,2720.2,0.00746419]
[1645940408554,0.81774487,2721.2,2720.2,0.00746419]
[1645940408754,0.00570002,2720.7,2720.5,1.34152885]
[1645940409557,0.00570002,2720.7,2720.2,0.00746419]
[1645940409758,0.81774487,2721.2,2720.3,1.55338135]
[1645940409957,0.00570002,2720.7,2720.3,1.55338135]
[1645940410961,0.81774487,2721.2,2720.3,1.55338135]
[1645940411159,0.00570006,2720.6,2720.3,1.55338135]
[1645940411995,0.00570006,2720.6,2720.2,0.00746419]
[1645940412195,0.67084487,2721.2,2720.3,1.5533994]
[1645940412395,0.00569519,2720.6,2720.3,1.5533994]
[1645940413398,0.67084487,2721.2,2720.3,1.5533994]
[1645940413598,0.00569519,2720.6,2720.3,1.5533994]
[1645940414098,0.00569519,2720.6,2720.2,0.00746419]
[1645940414497,0.30114487,2721.2,2720.2,0.00746419]
[1645940414699,0.3097406,2721.2,2720.2,0.00746419]
[1645940414903,0.00569521,2720.5,2720.2,0.00746419]
[1645940415102,0.00569521,2720.5,2720.2,1.31224362]
[1645940415303,0.00569521,2720.5,2720.3,3.5]
[1645940415770,0.00859573,2721.2,2720.3,4.5]
[1645940415964,0.00859573,2721.2,2720.3,3.5]
[1645940416163,0.00859573,2721.2,2720.3,4.5]
[1645940416164,0.00570146,2720.5,2720.3,4.5]
[1645940416966,0.00859573,2721.2,2720.4,14.3939296]
[1645940417164,0.00859573,2721.2,2720.4,20.7735296]
[1645940417165,0.00570146,2720.5,2720.4,20.7735296]
[1645940417364,0.00570146,2720.5,2720.4,23.66259595]
[1645940417566,0.00114487,2721.7,2720.4,23.66259595]
[1645940417567,0.00114487,2721.7,2721.6,1.40644605]
[1645940417767,0.00114487,2721.9,2721.6,1.1507]
[1645940417964,0.00114487,2722.2,2721.6,1.1507]
[1645940418164,0.00114487,2722.3,2721.6,1.1507]
[1645940418469,0.92672769,2722.5,2721.6,1.1507]
[1645940418664,0.92558282,2722.4,2721.6,1.1507]
[1645940418866,1.44218282,2722.4,2721.5,0.9428]
[1645940419064,1.44218282,2722.4,2721.1,8.7151]
[1645940419065,1.07362769,2722.3,2721.1,8.7151]
[1645940419306,0.92558282,2722.2,2721.1,8.7151]
[1645940419605,0.00114487,2722.1,2721.1,8.7151]
[1645940420008,0.00114487,2722.2,2721.1,4.7551]
[1645940420210,1.31293362,2721.9,2721.1,6.05274931]
[1645940420405,1.31293362,2721.9,2721.1,2.29764931]
[1645940420608,0.92672769,2722.2,2721.1,2.29764931]
[1645940420808,0.00570113,2721.6,2721.1,1.29764931]
[1645940421709,1.27581108,2721.9,2721.1,1.29764931]
[1645940421909,1.27581108,2721.9,2720.9,7.7408]
[1645940422110,0.00570119,2721.5,2720.9,19.0008]
[1645940422309,0.00570119,2721.5,2720.9,4.2408]
[1645940422612,0.00570119,2721.5,2720.9,1.0]
[1645940422809,0.00570119,2721.5,2721.0,1.1121008]
[1645940423056,0.00114487,2721.8,2721.0,0.6521008]
[1645940423247,0.00569043,2721.3,2721.0,0.6521008]
[1645940423848,0.00569043,2721.3,2721.1,0.1469]
[1645940424051,0.00569043,2721.3,2721.1,3.6469]
[1645940424247,0.00114487,2722.3,2721.1,4.6469]
[1645940424553,0.00569043,2721.3,2721.1,4.6469]
[1645940424748,0.00569043,2721.3,2721.1,1.1469]
[1645940424949,0.00569043,2721.3,2721.2,3.5]
[1645940425349,0.00114487,2722.3,2721.2,16.1297]
[1645940425755,0.00569041,2721.4,2721.2,15.76]
[1645940425953,0.00569041,2721.4,2721.3,14.76]
[1645940426158,0.02275822,2721.8,2721.3,14.76]
[1645940426159,0.02275822,2721.8,2721.7,1.19100079]
[1645940426556,0.00114487,2722.3,2721.7,1.19100079]
[1645940426797,0.30114487,2722.5,2721.7,1.19100079]
[1645940427200,0.44804487,2722.5,2721.7,1.19100079]
[1645940428002,1.60198673,2722.5,2721.7,1.19100079]
[1645940428200,1.45508673,2722.5,2721.7,1.19100079]
[1645940429201,0.00450117,2722.2,2721.7,1.19100079]
[1645940429403,0.00450117,2722.2,2721.5,4.50738747]
[1645940429601,0.00450117,2722.2,2721.5,1.00738747]
[1645940429802,0.00450117,2722.2,2721.5,0.00738747]
[1645940430204,1.45508673,2722.5,2721.5,0.00738747]
[1645940430402,0.005918,2722.0,2721.5,0.00738747]
[1645940430667,1.05017777,2722.0,2721.5,0.00738747]
[1645940431066,0.005918,2722.0,2721.5,0.00738747]
[1645940431471,0.30114487,2722.5,2721.5,0.00738747]
[1645940431668,0.00591805,2721.9,2721.5,0.00738747]
[1645940432666,1.22672769,2722.5,2721.5,0.00738747]
[1645940432871,0.00591808,2721.8,2721.5,0.00738747]
[1645940433768,0.00114487,2722.1,2721.5,0.00738747]
[1645940433974,1.43831556,2722.2,2721.5,0.00738747]
[1645940434169,0.0059181,2721.8,2721.5,0.00738747]
[1645940435009,0.00114487,2722.1,2721.5,0.00738747]
[1645940435210,1.43831556,2722.2,2721.5,0.00738747]
[1645940435211,0.0059181,2721.8,2721.5,0.00738747]
[1645940436216,0.02366886,2722.2,2721.5,0.00738747]
[1645940436217,0.00114487,2722.4,2721.5,0.00738747]
[1645940436525,0.0059181,2721.8,2721.5,0.00738747]
[1645940437417,0.00114487,2722.4,2721.5,0.00738747]
[1645940437617,0.0059181,2721.8,2721.5,0.00738747]
[1645940438556,0.00114487,2722.4,2721.7,1.40901685]
[1645940438958,0.0059181,2721.8,2721.7,1.40901685]
[1645940439756,0.00114487,2722.4,2721.7,1.40901685]
[1645940440158,0.00591805,2721.9,2721.7,1.40901685]
[1645940441062,0.00114487,2722.4,2721.7,1.40901685]
[1645940441264,0.00591803,2721.9,2721.7,1.40901685]
[1645940442305,0.00114487,2722.4,2721.7,1.40901685]
[1645940442508,0.00449913,2721.9,2721.7,1.40901685]
[1645940443506,0.00114487,2722.4,2721.7,1.40901685]
[1645940443708,0.00449913,2721.9,2721.7,1.40901685]
[1645940443907,0.00449913,2721.9,2721.7,12.66901685]
[1645940444106,0.00449913,2721.9,2721.7,1.40901685]
[1645940444311,0.00449913,2721.9,2721.8,3.5]
[1645940444808,0.00114487,2722.4,2721.8,1.0]
[1645940445007,0.00449913,2722.0,2721.7,2.40901685]
[1645940445208,0.00449913,2722.0,2721.7,1.40901685]
[1645940445657,0.00449913,2722.0,2721.8,11.26]
[1645940445865,0.00449913,2722.0,2721.7,1.40901685]
[1645940445866,0.00114487,2722.5,2721.9,9.1309]
[1645940446057,7.36,2722.6,2721.9,9.1309]
[1645940446259,0.00592023,2722.0,2721.9,21.3909]
[1645940446461,0.02367736,2722.4,2722.0,0.00774592]
[1645940446864,0.02367736,2722.4,2722.0,0.15464592]
[1645940447060,7.36,2722.6,2722.0,0.15464592]
[1645940448362,1.43112749,2722.4,2722.0,0.00774592]
[1645940448560,1.43562439,2722.4,2722.0,0.00774592]
[1645940449404,3.5,2722.3,2722.0,0.00774592]
[1645940449606,1.43112749,2722.4,2722.1,5.6305]
[1645940449802,0.0044969,2722.3,2722.1,5.6305]
[1645940450001,3.5044969,2722.3,2722.1,5.6305]
[1645940450206,0.0044969,2722.3,2722.1,5.6305]
[1645940450606,1.80082749,2722.4,2722.1,5.6305]
[1645940451008,0.00592005,2722.3,2722.1,5.6305]
[1645940451807,1.80082749,2722.4,2722.1,5.6305]
[1645940452207,0.00592005,2722.3,2722.1,5.6305]
[1645940452612,0.3697,2722.2,2722.1,5.6305]
[1645940452810,4.7007,2722.2,2722.1,5.6305]
[1645940453078,1.2007,2722.2,2722.1,5.6305]
[1645940453262,1.3476,2722.2,2722.1,5.6305]
[1645940453465,5.02768108,2722.2,2722.1,5.6305]
[1645940453662,2.4532639,2722.2,2722.1,5.6305]
[1645940453863,2.52768108,2722.2,2722.1,5.6305]
[1645940454063,1.52768108,2722.2,2722.1,5.6305]
[1645940454265,2.52768108,2722.2,2722.1,5.6305]
[1645940454462,1.52768108,2722.2,2722.1,5.6305]
[1645940454666,2.52768108,2722.2,2722.1,5.6305]
[1645940454864,1.52768108,2722.2,2722.1,5.6305]
[1645940455062,6.02768108,2722.2,2722.1,5.6305]
[1645940455866,3.07364657,2722.2,2722.1,5.6305]
[1645940456064,3.99423781,2722.2,2722.1,5.6305]
[1645940457807,3.06865499,2722.2,2722.1,5.6305]
[1645940458607,2.44921071,2722.2,2722.1,5.6305]
[1645940458806,2.5226895,2722.2,2722.1,5.6305]
[1645940459009,1.5226895,2722.2,2722.1,5.6305]
[1645940459208,2.3757895,2722.2,2722.1,5.6305]
[1645940459410,1.3757895,2722.2,2722.1,5.6305]
[1645940459606,2.30281156,2722.2,2722.1,5.6305]
[1645940459812,1.3757895,2722.2,2722.1,5.6305]
[1645940460666,1.0060895,2722.2,2722.1,5.6305]
[1645940460869,0.531,2722.2,2722.1,5.6305]
[1645940461069,1.45889239,2722.2,2722.1,5.6305]
[1645940461769,0.531,2722.2,2722.1,5.6305]
[1645940461968,1.45928501,2722.2,2722.1,5.6305]
[1645940462573,1.75928501,2722.2,2722.1,5.6305]
[1645940462969,0.831,2722.2,2722.1,5.6305]
[1645940463171,0.3,2722.2,2722.1,5.6305]
[1645940463369,1.1556877,2722.3,2722.1,5.6305]
[1645940463570,0.8556877,2722.3,2722.1,5.6305]
[1645940463770,1.78397271,2722.3,2722.1,5.6305]
[1645940463972,1.77805264,2722.3,2722.1,5.6305]
[1645940464172,1.78397269,2722.3,2722.1,5.6305]
[1645940465021,1.77805264,2722.3,2722.1,5.6305]
[1645940465218,1.78254734,2722.3,2722.1,5.6305]
[1645940466222,1.77805264,2722.3,2722.1,5.6305]
[1645940466623,1.78397492,2722.3,2722.1,5.6305]
[1645940467424,1.77805264,2722.3,2722.1,5.6305]
[1645940467728,1.78397492,2722.3,2722.1,5.6305]
[1645940467926,0.92828501,2722.2,2722.1,5.6305]
[1645940468570,0.92828501,2722.2,2722.0,0.00774592]
[1645940468571,11.3697,2722.2,2722.0,0.00774592]
[1645940468772,21.88499568,2722.1,2722.0,0.00774592]
[1645940468968,21.88499568,2722.1,2720.8,0.1469]
[1645940468969,7.5,2722.0,2721.2,0.0047681]
[1645940469170,0.3697,2721.3,2721.2,0.0047681]
[1645940469367,3.39368548,2721.3,2721.2,0.0047681]
[1645940469769,4.39368548,2721.3,2721.2,0.0047681]
[1645940469967,4.39368548,2721.3,2720.8,0.1469]
[1645940470168,4.39368548,2721.3,2721.1,0.0047682]
[1645940470771,3.39368548,2721.3,2721.1,0.0047682]
[1645940471171,3.94414115,2721.3,2720.2,1.08233239]
[1645940471373,3.94414115,2721.3,2721.1,0.00476828]
[1645940471813,4.94414115,2721.3,2721.1,0.00476828]
[1645940472213,0.1469,2721.2,2721.1,0.00476828]
[1645940472415,0.1469,2721.2,2720.2,1.08233239]
[1645940472416,0.6779,2721.2,2720.2,1.08233239]
[1645940472617,0.6779,2721.2,2720.3,1.55323419]
[1645940473416,1.0476,2721.2,2720.3,1.55323419]
[1645940474020,1.0476,2721.2,2720.3,1.09363419]
[1645940474218,1.0476,2721.2,2720.2,1.08233239]
[1645940474419,0.6779,2721.2,2720.2,1.08233239]
[1645940475123,0.6779,2721.2,2720.6,0.00475724]
[1645940475765,0.6279,2721.2,2720.6,0.00475724]
[1645940475967,0.6279,2721.2,2720.2,1.08233239]
[1645940476166,0.6279,2721.2,2720.8,0.00475689]
[1645940477167,0.6279,2721.2,2720.2,0.62748928]
[1645940477466,0.6279,2721.2,2720.9,0.00475671]
[1645940478269,0.6279,2721.2,2720.3,3.5]
[1645940478568,0.6279,2721.2,2720.2,0.62748928]
[1645940478866,0.6279,2721.2,2720.2,4.12748928]
[1645940479703,0.6279,2721.2,2720.6,0.00474534]
[1645940480107,0.6279,2721.2,2720.2,3.67263462]
[1645940480302,0.6279,2721.2,2720.2,3.5]
[1645940480504,0.6279,2721.2,2720.2,4.5]
[1645940480505,0.531,2721.2,2720.2,4.5]
[1645940480713,0.55045567,2721.3,2720.2,4.6469]
[1645940481509,0.55045567,2721.3,2720.2,0.1469]
[1645940481510,1.14265687,2721.2,2720.2,0.1469]
[1645940481714,1.14265687,2721.2,2720.1,0.25]
[1645940481715,2.00063795,2721.2,2720.1,0.25]
[1645940481915,3.46533795,2721.2,2719.9,0.01474386]
[1645940482110,3.16533795,2721.2,2719.9,0.01474386]
[1645940482312,4.16533795,2721.2,2719.9,0.01474386]
[1645940482511,4.11533795,2721.2,2720.0,1.13758695]
[1645940482715,4.11533795,2721.2,2720.1,3.5]
[1645940482716,3.96843795,2721.2,2720.1,3.5]
[1645940483154,2.80373795,2721.2,2720.1,3.5]
[1645940483360,1.80373795,2721.2,2720.1,3.5]
[1645940483556,2.80373795,2721.2,2720.1,3.5]
[1645940483754,1.80373795,2721.2,2720.1,3.5]
[1645940483954,2.80373795,2721.2,2720.0,1.13758695]
[1645940484154,0.531,2721.2,2720.1,3.8697]
[1645940484362,0.55045567,2721.3,2720.2,0.3697]
[1645940484554,0.55637747,2721.3,2720.5,0.00473365]
[1645940485556,0.85045567,2721.3,2720.6,1.36811838]
[1645940485759,0.85637797,2721.3,2720.6,1.36811838]
[1645940485966,0.85637797,2721.3,2720.5,0.00473365]
[1645940486660,0.85045567,2721.3,2720.2,0.1469]
[1645940486904,0.85045567,2721.3,2720.5,0.00473365]
[1645940486905,1.25306194,2721.1,2720.5,0.00473365]
[1645940487106,0.85637797,2721.3,2720.5,0.00473365]
[1645940487305,0.3,2721.1,2720.5,0.00473365]
[1645940487603,0.531,2721.0,2720.5,0.00473365]
[1645940488005,0.531,2721.0,2719.9,1.26234386]
[1645940488403,0.531,2721.0,2720.5,0.00473365]
[1645940488607,1.2292609,2720.8,2720.5,0.00473365]
[1645940488804,1.8989609,2720.8,2720.5,0.00473365]
[1645940489005,0.3697,2720.6,2720.5,0.00473365]
[1645940489210,0.3697,2720.6,2719.9,0.01474386]
[1645940489211,1.2007,2720.6,2719.9,0.01474386]
[1645940489408,1.2007,2720.6,2720.5,0.00473365]
[1645940490407,1.26522244,2720.3,2719.9,0.01474386]
[1645940491266,1.56522244,2720.3,2719.9,0.01474386]
[1645940491861,1.93492244,2720.3,2720.0,0.00473452]
[1645940492062,0.9007,2720.2,2720.0,0.00473452]
[1645940492864,0.9007,2720.2,2719.9,0.01474386]
[1645940493062,0.9007,2720.2,2720.0,0.00443862]
[1645940494062,0.9007,2720.2,2719.9,0.01474386]
[1645940494308,0.9007,2720.2,2720.0,0.00443862]
[1645940495111,0.9007,2720.2,2719.2,0.94444248]
[1645940495307,0.9007,2720.2,2719.3,1.55496841]
[1645940495508,0.9007,2720.2,2720.0,0.00443862]
[1645940496515,0.9007,2720.2,2719.3,0.00118183]
[1645940496909,0.9007,2720.2,2719.3,1.55493061]
[1645940497610,0.531,2720.2,2719.3,1.55493061]
[1645940497812,0.3,2720.3,2719.3,5.05493061]
[1645940498256,0.4469,2720.5,2719.4,1.09523061]
[1645940498458,0.3,2720.5,2719.5,3.5]
[1645940498857,0.56203815,2720.6,2719.5,3.5]
[1645940498858,0.86203815,2720.6,2719.5,4.8697]
[1645940499060,0.86203815,2720.6,2719.5,3.8697]
[1645940499257,0.56203815,2720.6,2719.5,4.8697]
[1645940500262,0.56203815,2720.6,2720.1,1.12084766]
[1645940500461,2.8421,2720.9,2720.2,3.5]
[1645940500462,0.1469,2720.9,2720.2,3.5]
[1645940500864,0.00592156,2721.0,2720.1,1.12084766]
[1645940501060,0.00592156,2721.0,2720.2,3.5]
[1645940501261,3.6469,2721.4,2720.2,0.3697]
[1645940501462,2.2349,2721.5,2720.1,1.12084766]
[1645940501463,0.00592238,2721.0,2720.1,1.12084766]
[1645940502505,3.5,2721.4,2720.1,1.12084766]
[1645940502707,0.00592238,2721.0,2720.2,3.5]
[1645940503105,0.00592238,2721.0,2719.9,3.5047236]
[1645940503306,0.00592238,2721.0,2719.9,4.5047236]
[1645940503506,0.00592238,2721.0,2719.9,4.8744236]
[1645940503708,0.6697,2721.4,2719.9,4.5]
[1645940503907,0.6697,2721.4,2720.0,1.31727836]
[1645940503908,1.163609,2721.0,2720.0,1.31727836]
[1645940504107,1.163609,2721.0,2719.9,4.0450236]
[1645940504508,1.163609,2721.0,2719.9,3.0450236]
[1645940504712,1.610509,2721.0,2719.9,0.0047236]
[1645940504910,1.610509,2721.0,2719.8,3.221]
[1645940504911,1.60458678,2721.0,2719.8,3.221]
[1645940505113,1.610509,2721.0,2719.9,0.0047236]
[1645940505573,0.531,2720.9,2719.9,0.0047236]
[1645940505967,0.531,2720.9,2719.8,4.221]
[1645940506367,0.531,2720.9,2719.9,0.0047236]
[1645940506870,0.531,2720.9,2719.9,3.5047236]
[1645940507268,0.531,2720.9,2719.9,3.5]
[1645940507470,0.531,2720.9,2719.9,3.5047236]
[1645940507670,0.67562214,2721.0,2719.9,3.5047236]
[1645940507870,0.67562214,2721.0,2719.9,4.5047236]
[1645940507871,0.30592214,2721.0,2719.9,4.5047236]
[1645940508271,0.00592214,2721.0,2719.9,4.5047236]
[1645940508472,0.69338771,2721.1,2719.9,4.5]
[1645940508473,0.3697,2721.1,2719.9,4.5]
[1645940508671,0.00592222,2721.0,2719.9,4.5047236]
[1645940508873,0.00592222,2721.0,2719.9,4.8744236]
[1645940509310,0.30592222,2721.0,2719.9,4.5047236]
[1645940509515,0.00592222,2721.0,2719.9,4.5047236]
[1645940509715,0.831,2721.4,2719.9,4.5]
[1645940509915,0.831,2721.4,2719.9,4.5047236]
[1645940509916,0.00592222,2721.0,2719.9,4.5047236]
[1645940510113,0.00592222,2721.0,2720.4,1.23596375]
[1645940510918,3.3818,2721.5,2720.4,1.23596375]
[1645940511118,0.00592263,2721.0,2720.4,1.23596375]
[1645940512121,2.2349,2721.5,2720.4,1.23596375]
[1645940512318,0.00592263,2721.0,2720.5,3.5]
[1645940512519,0.00592263,2721.0,2720.4,4.73596375]
[1645940512826,0.00592263,2721.0,2720.4,5.73596375]
[1645940513262,1.0768628,2721.8,2720.5,0.3697]
[1645940513263,0.9299628,2721.8,2720.5,0.3697]
[1645940513464,1.0768628,2721.8,2720.6,3.5]
[1645940513665,0.00592263,2721.0,2720.6,3.5]
[1645940513863,0.00592263,2721.0,2720.6,1.0]
[1645940514263,0.00592263,2721.0,2720.7,3.5]
[1645940514464,0.9299628,2721.8,2720.7,3.5]
[1645940514668,0.0059228,2721.0,2720.7,4.5]
[1645940514865,0.02368851,2721.3,2721.0,0.00756555]
[1645940515766,1.7609628,2721.8,2721.0,0.00756555]
[1645940516165,0.83214487,2721.8,2721.0,0.00756555]
[1645940516567,0.00114487,2721.8,2721.0,0.00756555]
[1645940517027,0.00114487,2721.8,2721.0,3.50756555]
[1645940517233,0.00114487,2721.8,2721.0,1.00756555]
[1645940517630,0.00114487,2721.8,2721.0,0.00756555]
[1645940518237,1.09538632,2721.5,2721.1,1.55301775]
[1645940518438,0.531,2721.4,2721.0,0.00756555]
[1645940518633,0.831,2721.4,2721.0,0.00756555]
[1645940519636,0.00592281,2721.3,2721.0,0.00756555]
[1645940520438,0.831,2721.6,2721.0,0.00756555]
[1645940521157,0.00592283,2721.3,2721.0,0.00756555]
[1645940521760,0.831,2721.6,2721.0,0.00756555]
[1645940521958,0.00592283,2721.3,2721.0,0.00756555]
[1645940522962,0.831,2721.6,2721.0,0.00756555]
[1645940523163,0.00592283,2721.3,2721.0,0.00756555]
[1645940524163,0.3,2721.6,2721.0,0.00756555]
[1645940524414,0.00592283,2721.3,2721.0,1.39846915]
[1645940525416,0.1469,2721.9,2721.0,1.39846915]
[1645940525619,0.00592283,2721.3,2721.0,1.39846915]
[1645940526219,0.00592283,2721.3,2721.1,3.5]
[1645940526421,0.00592283,2721.3,2721.0,1.39846915]
[1645940526619,0.88522117,2722.0,2721.1,1.55298553]
[1645940526821,0.00592283,2721.3,2721.2,3.5]
[1645940527018,0.00592283,2721.3,2721.0,5.89846915]
[1645940527419,0.00592283,2721.3,2721.0,2.39846915]
[1645940527821,0.88522117,2722.0,2721.1,1.55298087]
[1645940528076,0.00592283,2721.3,2721.1,5.05298087]
[1645940528264,0.00592283,2721.3,2721.0,1.39846915]
[1645940528463,0.00592283,2721.3,2721.1,1.55298022]
[1645940528864,0.88522117,2722.0,2721.1,1.55298022]
[1645940529064,0.88522117,2722.0,2721.2,3.5]
[1645940529266,0.00592281,2721.3,2721.2,3.5]
[1645940529466,0.00592281,2721.3,2721.0,2.39846915]
[1645940529665,0.00592281,2721.3,2721.1,1.55293048]
[1645940530069,0.88522117,2722.0,2721.1,1.55293048]
[1645940530273,0.00592281,2721.3,2721.2,3.5]
[1645940530466,0.00592281,2721.3,2721.0,2.39846915]
[1645940530872,0.00592281,2721.3,2721.0,1.39846915]
[1645940531374,0.88522117,2722.0,2721.0,1.39846915]
[1645940531576,0.00592283,2721.3,2721.0,1.39846915]
[1645940532614,0.83522117,2722.0,2721.0,1.39846915]
[1645940532918,0.00592283,2721.3,2721.0,1.39846915]
[1645940533517,0.00592283,2721.3,2721.1,1.55291666]
[1645940533729,0.04541524,2722.0,2721.2,2.96511585]
[1645940533730,0.00114487,2722.0,2721.2,2.96511585]
[1645940533923,0.00114487,2722.0,2721.3,1.55291666]
[1645940534124,0.02368778,2721.7,2721.4,1.55291666]
[1645940534323,0.02368778,2721.7,2721.1,2.9767]
[1645940534524,0.02368778,2721.7,2721.6,1.07265242]
[1645940534927,0.00114487,2722.0,2721.6,1.07265242]
[1645940535225,0.00592257,2721.8,2721.6,1.07265242]
[1645940536070,0.50225407,2722.1,2721.6,1.07265242]
[1645940536470,0.00592255,2721.8,2721.6,1.07265242]
[1645940537271,0.50225407,2722.1,2721.2,4.0498]
[1645940537570,0.00450189,2721.9,2721.3,1.55273796]
[1645940538169,0.00450189,2721.9,2721.5,1.13432196]
[1645940538370,0.00450189,2721.9,2721.3,1.0]
[1645940538574,0.45339894,2722.1,2721.3,6.0]
[1645940538769,0.00592233,2721.9,2721.3,7.0]
[1645940539431,0.00592233,2721.9,2721.4,1.33341996]
[1645940539632,0.45339894,2722.1,2721.4,2.8861625]
[1645940539831,0.45339894,2722.1,2721.4,2.33341996]
[1645940540035,0.00592216,2721.9,2721.4,2.33341996]
[1645940540233,0.00592216,2721.9,2721.4,1.33341996]
[1645940541034,0.00592216,2721.9,2721.2,4.3498]
[1645940541035,0.45339894,2722.1,2721.2,4.3498]
[1645940541236,0.00592225,2721.9,2721.3,1.55274756]
[1645940541636,0.41031189,2722.1,2721.4,2.5]
[1645940542039,0.41031189,2722.1,2721.5,1.33549036]
[1645940542638,0.41031189,2722.1,2721.5,1.3324126]
[1645940543458,0.41031189,2722.1,2721.2,4.3498]
[1645940543655,0.41031189,2722.1,2721.3,1.55278645]
[1645940544056,0.36031189,2722.1,2721.3,1.55278645]
[1645940544458,0.36031189,2722.1,2721.5,1.2243156]
[1645940544856,0.00592211,2722.0,2721.5,1.2243156]
[1645940545664,0.36031189,2722.1,2721.5,1.2243156]
[1645940545862,0.36031189,2722.1,2721.6,1.55266652]
[1645940546062,0.00592219,2722.0,2721.6,1.55266652]
[1645940546910,0.31031189,2722.1,2721.6,1.55266652]
[1645940547111,0.00592228,2722.0,2721.6,1.55266652]